bitfinex-derivatives/quotes_BNBF0:USTF0_20241225
["timestamp","ask_amount","ask_price","bid_price","bid_amount"]
[1735126897013,0.25957612,709.14,707.77,1.05053463]
[1735126897210,0.25957612,709.13,707.77,1.05053463]
[1735126897410,0.25957612,709.12,707.77,1.05053463]
[1735126897606,0.25957612,709.11,707.77,1.05053463]
[1735126897910,0.25957612,709.1,707.77,1.05053463]
[1735126898112,0.25957612,709.09,707.76,1.05053463]
[1735126898307,0.25957612,709.08,707.76,1.05053463]
[1735126898509,0.25957612,709.07,707.76,1.05053463]
[1735126898706,0.25957612,709.06,707.76,1.05053463]
[1735126898912,0.25957612,709.05,707.76,1.05053463]
[1735126899113,0.28199994,709.22,707.53,1.05053463]
[1735126899114,0.2595711,709.04,707.83,1.05053463]
[1735126899311,1.04887073,709.12,707.83,1.05053463]
[1735126899312,0.2595711,709.03,707.83,1.05053463]
[1735126899513,0.2595711,709.02,707.83,1.05053463]
[1735126899808,0.2595711,709.01,707.83,1.05053463]
[1735126900008,0.2595711,709.0,707.81,1.05053463]
[1735126900207,0.2595711,708.99,707.81,1.05053463]
[1735126900407,1.04887073,709.1,707.81,1.05053463]
[1735126900408,0.2595711,708.98,707.81,1.05053463]
[1735126900610,0.2595711,708.97,707.81,1.05053463]
[1735126900808,0.2595711,708.96,707.81,1.05053463]
[1735126901012,0.2595711,708.95,707.85,1.05053463]
[1735126901211,0.2595711,708.94,707.85,1.05053463]
[1735126901413,0.2595711,708.93,707.85,1.05053463]
[1735126901608,0.28199994,709.22,707.85,1.05053463]
[1735126901609,0.2595711,708.92,707.85,1.05053463]
[1735126901813,0.2595711,708.91,707.85,1.05053463]
[1735126902011,0.2595711,708.9,707.85,1.05053463]
[1735126902214,0.2595711,708.89,707.85,1.05053463]
[1735126902413,0.2595711,708.88,707.85,1.05053463]
[1735126902614,0.2595711,708.87,707.8,1.05053463]
[1735126902816,0.2595711,708.86,707.8,1.05053463]
[1735126903015,0.2595711,708.85,707.8,1.05053463]
[1735126903318,0.2595711,708.84,707.8,1.05053463]
[1735126903518,1.04887073,709.19,707.8,1.05053463]
[1735126903519,0.2595711,708.83,707.8,1.05053463]
[1735126903719,0.2595711,708.82,707.8,1.05053463]
[1735126903918,0.2595711,708.81,707.8,1.05053463]
[1735126904119,0.2595711,708.8,707.8,1.05053463]
[1735126904318,0.2595711,708.79,707.8,1.05053463]
[1735126904518,1.04887073,709.19,707.8,1.05053463]
[1735126904519,0.2595711,708.78,707.8,1.05053463]
[1735126904823,0.2595711,708.77,707.82,1.05053463]
[1735126905119,0.2595711,708.76,707.82,1.05053463]
[1735126905320,1.04887073,709.16,707.82,1.05053463]
[1735126905517,0.25957478,709.15,707.82,1.05053463]
[1735126905917,1.04887073,709.14,707.83,1.05053463]
[1735126906120,0.54161051,709.13,707.83,1.05053463]
[1735126906319,0.25957478,709.12,707.83,1.05053463]
[1735126906821,0.28204368,709.11,707.86,1.05053463]
[1735126907020,0.25957478,709.1,707.86,1.05053463]
[1735126907320,0.28205164,709.09,707.86,1.05053463]
[1735126907520,0.25957478,709.08,707.86,1.05053463]
[1735126907720,0.54163581,709.07,707.86,1.05053463]
[1735126907920,0.25957622,709.06,707.86,1.05053463]
[1735126908222,0.28206755,709.05,707.85,1.05053463]
[1735126908422,0.25956661,709.04,707.85,1.05053463]
[1735126908622,0.28207551,709.03,707.85,1.05053463]
[1735126908817,0.25956661,709.02,707.85,1.05053463]
[1735126909016,0.25956661,709.02,707.63,1.05053463]
[1735126909017,0.25956661,709.02,707.91,1.05053463]
[1735126909720,0.28208346,709.01,707.91,1.05053463]
[1735126909922,0.25956661,709.0,707.91,1.05053463]
[1735126910125,0.28209142,708.99,707.91,1.05053463]
[1735126910422,0.25957259,708.98,707.95,1.05053463]
[1735126910724,0.28209938,708.97,707.95,1.05053463]
[1735126910923,0.25957259,708.96,707.95,1.05053463]
[1735126911519,0.25957259,708.96,707.9,1.05053463]
[1735126913124,0.28209938,708.97,707.9,1.05053463]
[1735126913325,0.25957533,708.96,707.91,1.05053463]
[1735126914529,0.28209938,708.97,707.91,1.05053463]
[1735126914728,0.25960133,708.96,707.91,1.05053463]
[1735126915430,0.25960133,708.96,707.68,1.05053463]
[1735126916130,0.28210734,708.95,707.68,1.05053463]
[1735126916331,0.25960133,708.94,707.68,1.05053463]
[1735126916532,0.25960743,708.94,707.66,1.05053463]
[1735126917333,0.93660743,708.94,707.66,1.05053463]
[1735126917533,0.25960743,708.93,707.66,1.05053463]
[1735126917729,0.25960743,708.93,707.65,1.05053463]
[1735126918830,0.25960743,708.93,707.47,0.28269749]
[1735126918831,0.25960743,708.93,707.57,1.05053463]
[1735126920935,0.677,708.94,707.57,1.05053463]
[1735126921131,0.25961291,708.93,707.57,1.05053463]
[1735126921636,0.25961291,708.93,707.62,1.05053463]
[1735126922436,0.25961291,708.93,707.61,1.05053463]
[1735126923332,0.28211928,708.92,707.61,1.05053463]
[1735126923533,0.25961291,708.91,707.61,1.05053463]
[1735126923737,0.25961291,708.91,707.63,1.05053463]
[1735126924136,0.28211928,708.92,707.63,1.05053463]
[1735126924331,0.25963147,708.91,707.63,1.05053463]
[1735126924733,0.25963147,708.91,707.56,1.05053463]
[1735126926136,0.28211928,708.92,707.56,1.05053463]
[1735126926438,0.25962725,708.91,707.56,1.05053463]
[1735126927041,0.25962725,708.91,707.57,1.05053463]
[1735126928238,0.25962725,708.91,707.47,0.28269749]
[1735126928239,0.25962725,708.91,707.62,1.05053463]
[1735126928935,0.28211928,708.92,707.62,1.05053463]
[1735126929140,0.25962581,708.91,707.6,1.05053463]
[1735126930240,0.25962581,708.91,707.61,1.05053463]
[1735126931447,0.25962581,708.91,707.6,1.05053463]
[1735126932341,0.25962581,708.91,707.66,1.05053463]
[1735126932545,0.25961906,708.9,707.66,1.05053463]
[1735126932748,0.25961906,708.89,707.66,1.05053463]
[1735126932948,0.25961906,708.88,707.66,1.05053463]
[1735126933248,0.25961906,708.87,707.6,1.05053463]
[1735126933547,0.25961906,708.86,707.6,1.05053463]
[1735126933846,0.25961906,708.85,707.6,1.05053463]
[1735126934047,0.28211928,708.92,707.6,1.05053463]
[1735126934244,0.25960885,708.91,707.6,1.05053463]
[1735126934441,0.28211928,708.92,707.54,1.05053463]
[1735126935648,0.28211928,708.92,707.47,0.28269749]
[1735126935649,0.28211928,708.92,707.61,1.05053463]
[1735126936546,0.28211928,708.92,707.54,1.05053463]
[1735126937643,0.28211928,708.92,707.56,1.05053463]
[1735126938348,0.28211928,708.92,707.47,0.28269749]
[1735126938349,0.28211928,708.92,707.53,1.05053463]
[1735126939451,0.28211928,708.92,707.52,1.05053463]
[1735126941446,0.28211928,708.92,707.54,1.05053463]
[1735126941646,1.06011928,708.92,707.54,1.05053463]
[1735126942557,1.06011928,708.92,707.57,1.05053463]
[1735126943355,1.06011928,708.92,707.53,1.05053463]
[1735126944353,1.06011928,708.92,707.55,1.05053463]
[1735126945354,1.06011928,708.92,707.47,0.28269749]
[1735126945355,1.06011928,708.92,707.6,1.05053463]
[1735126945956,0.25960161,708.91,707.59,1.05053463]
[1735126946758,0.25960161,708.91,707.6,1.05053463]
[1735126947752,0.25960161,708.91,707.58,1.05053463]
[1735126948152,1.06011928,708.92,707.58,1.05053463]
[1735126948352,0.25961783,708.91,707.58,1.05053463]
[1735126948856,1.06011928,708.92,707.59,1.05053463]
[1735126949158,0.25962225,708.91,707.59,1.05053463]
[1735126949960,0.25962225,708.91,707.61,1.05053463]
[1735126950957,0.25967076,708.9,707.47,0.28269749]
[1735126951160,0.25967076,708.89,707.47,0.28269749]
[1735126951363,0.25967076,708.88,707.47,0.28269749]
[1735126951559,0.25967076,708.87,707.47,0.28269749]
[1735126951762,0.25967076,708.86,707.47,0.28269749]
[1735126952066,0.25967076,708.85,707.47,0.28269749]
[1735126952259,0.25967076,708.84,707.47,0.28269749]
[1735126952465,0.25967076,708.83,707.47,0.28269749]
[1735126952764,0.25967076,708.82,707.47,0.28269749]
[1735126952964,0.25967076,708.81,707.47,0.28269749]
[1735126953264,0.25967076,708.8,707.47,0.28269749]
[1735126953462,1.06011928,708.92,707.47,0.28269749]
[1735126953661,0.25966561,708.91,707.47,0.28269749]
[1735126955766,0.25966561,708.91,707.51,1.05053463]
[1735126956165,1.06011928,708.92,707.51,1.05053463]
[1735126956371,0.25962306,708.91,707.51,1.05053463]
[1735126957070,0.25962121,708.9,707.61,1.05053463]
[1735126957271,0.25962121,708.91,707.61,1.05053463]
[1735126957466,0.25962121,708.9,707.61,1.05053463]
[1735126957668,0.25962121,708.89,707.61,1.05053463]
[1735126957969,0.25962121,708.88,707.6,1.05053463]
[1735126958166,0.25962121,708.87,707.6,1.05053463]
[1735126958471,0.25962121,708.86,707.6,1.05053463]
[1735126958674,0.25962121,708.85,707.6,1.05053463]
[1735126959171,0.259625,708.84,707.6,1.05053463]
[1735126959473,0.259625,708.83,707.6,1.05053463]
[1735126959668,0.259625,708.82,707.6,1.05053463]
[1735126959871,0.67,708.86,707.6,1.05053463]
[1735126960069,0.25961387,708.85,707.6,1.05053463]
[1735126960869,0.67,708.86,707.6,1.05053463]
[1735126961271,0.67,708.86,707.51,1.05053463]
[1735126962374,0.67,708.86,707.47,0.28269749]
[1735126962877,0.25965241,708.85,707.47,0.28269749]
[1735126963676,0.67,708.86,707.47,0.28269749]
[1735126963877,0.25965853,708.85,707.47,0.28269749]
[1735126965275,0.67,708.86,707.47,0.28269749]
[1735126965276,0.25966004,708.84,707.47,0.28269749]
[1735126965480,0.25966004,708.83,707.47,0.28269749]
[1735126965681,0.25966004,708.82,707.47,0.28269749]
[1735126965874,0.67,708.86,707.47,0.28269749]
[1735126966077,0.25965189,708.85,707.47,0.28269749]
[1735126966279,0.67,708.86,707.47,0.28269749]
[1735126966584,0.25962735,708.85,707.47,0.28269749]
[1735126968183,0.25962735,708.85,707.48,1.05053463]
[1735126969385,0.25962735,708.85,707.47,0.28269749]
[1735126969977,0.25965363,708.84,707.47,0.28269749]
[1735126970181,0.25965363,708.83,707.47,0.28269749]
[1735126970383,0.67,708.86,707.47,0.28269749]
[1735126970384,0.25965363,708.82,707.47,0.28269749]
[1735126970584,0.25965363,708.81,707.47,0.28269749]
[1735126970778,0.25965363,708.8,707.47,0.28269749]
[1735126970983,0.25965363,708.79,707.47,0.28269749]
[1735126971284,0.25965363,708.78,707.47,0.28269749]
[1735126971485,0.25965363,708.77,707.47,0.28269749]
[1735126971685,0.25965993,708.76,707.47,0.28269749]
[1735126971882,0.25965993,708.75,707.47,0.28269749]
[1735126972087,0.25965993,708.74,707.47,0.28269749]
[1735126972388,0.25965993,708.73,707.47,0.28269749]
[1735126972585,0.25965993,708.72,707.47,0.28269749]
[1735126972785,0.25967702,708.71,707.47,0.28269749]
[1735126972987,0.25967702,708.7,707.47,0.28269749]
[1735126973181,0.25967702,708.69,707.47,0.28269749]
[1735126973380,0.25967702,708.68,707.47,0.28269749]
[1735126973584,0.25967702,708.67,707.47,0.28269749]
[1735126973887,0.25967702,708.66,707.47,0.28269749]
[1735126974089,0.25967702,708.65,707.47,0.28269749]
[1735126974384,0.67,708.86,707.47,0.28269749]
[1735126974582,0.25967335,708.85,707.47,0.28269749]
[1735126976590,0.2596672,708.84,707.47,0.28269749]
[1735126976790,0.2596672,708.83,707.47,0.28269749]
[1735126977089,0.2596672,708.82,707.47,0.28269749]
[1735126977285,0.2596672,708.81,707.47,0.28269749]
[1735126977486,0.2596672,708.8,707.47,0.28269749]
[1735126977685,0.2596672,708.79,707.47,0.28269749]
[1735126977885,0.2596672,708.78,707.47,0.28269749]
[1735126978189,0.2596672,708.77,707.47,0.28269749]
[1735126978391,0.67,708.86,707.47,0.28269749]
[1735126978592,0.25966882,708.85,707.47,0.28269749]
[1735126980792,0.2821551,708.83,707.47,0.28269749]
[1735126980992,0.25966882,708.82,707.47,0.28269749]
[1735126981193,0.28216704,708.8,707.47,0.28269749]
[1735126981385,0.25966882,708.79,707.47,0.28269749]
[1735126981586,0.28216704,708.8,707.47,0.28269749]
[1735126981789,0.25967019,708.79,707.47,0.28269749]
[1735126983195,0.25966739,708.78,707.47,0.28269749]
[1735126983391,0.25966739,708.77,707.47,0.28269749]
[1735126983591,0.25966739,708.76,707.47,0.28269749]
[1735126983797,0.25966739,708.75,707.47,0.28269749]
[1735126983999,0.28216704,708.8,707.47,0.28269749]
[1735126984298,0.28216704,708.8,707.48,1.05053463]
[1735126985297,0.2596301,708.79,707.53,1.05053463]
[1735126985890,0.28216704,708.8,707.53,1.05053463]
[1735126985891,0.25962832,708.78,707.53,1.05053463]
[1735126986095,0.28216704,708.8,707.53,1.05053463]
[1735126986394,0.25962886,708.79,707.55,1.05053463]
[1735126987990,0.88862886,708.79,707.55,1.05053463]
[1735126988192,0.25962886,708.78,707.55,1.05053463]
[1735126988598,0.25965899,708.77,707.55,1.05053463]
[1735126988794,0.25965899,708.76,707.55,1.05053463]
[1735126989099,0.25965899,708.75,707.55,1.05053463]
[1735126989292,0.25966127,708.74,707.47,1.33323212]
[1735126989493,0.25966127,708.73,707.47,1.33323212]
[1735126989695,0.25966127,708.72,707.47,1.33323212]
[1735126989894,0.25966127,708.71,707.47,1.33323212]
[1735126990094,0.25966127,708.7,707.51,1.05053463]
[1735126990292,0.25966127,708.69,707.51,1.05053463]
[1735126990492,0.25966127,708.68,707.51,1.05053463]
[1735126990696,0.629,708.79,707.51,1.05053463]
[1735126990897,0.25965967,708.78,707.51,1.05053463]
[1735126991197,0.25965967,708.78,707.48,1.05053463]
[1735126991497,0.25965696,708.77,707.48,1.05053463]
[1735126991697,0.25965696,708.76,707.48,1.05053463]
[1735126991897,0.25965696,708.75,707.48,1.05053463]
[1735126992098,0.25965696,708.74,707.48,1.05053463]
[1735126992298,0.25965696,708.73,707.49,1.05053463]
[1735126992500,0.25965696,708.72,707.49,1.05053463]
[1735126992699,0.25965696,708.71,707.49,1.05053463]
[1735126992900,0.54186381,708.7,707.49,1.05053463]
[1735126993096,0.54186779,708.69,707.49,1.05053463]
[1735126993295,0.25965696,708.68,707.49,1.05053463]
[1735126993499,0.25965696,708.68,707.5,1.05053463]
[1735126993693,0.2822188,708.67,707.5,1.05053463]
[1735126993896,0.25965696,708.66,707.5,1.05053463]
[1735126994101,0.2822188,708.67,707.5,1.05053463]
[1735126994401,0.25966433,708.66,707.5,1.05053463]
[1735126995501,0.25966433,708.66,707.55,1.05053463]
[1735126996505,0.25966433,708.66,707.53,1.05053463]
[1735126997604,0.25966408,708.65,707.53,1.05053463]
[1735126997803,0.25966408,708.64,707.59,1.05053463]
[1735126998005,0.25966408,708.63,707.59,1.05053463]
[1735126998203,0.25966408,708.62,707.59,1.05053463]
[1735126998397,0.25966408,708.61,707.59,1.05053463]
[1735126998606,0.25966408,708.6,707.59,1.05053463]
[1735126998805,0.2822188,708.67,707.47,1.33323212]
[1735126998806,0.25966408,708.59,707.47,1.33323212]
[1735126999002,0.25966408,708.58,707.47,1.33323212]
[1735126999203,0.25970513,708.57,707.47,1.33323212]
[1735126999404,0.2822188,708.67,707.47,1.05053463]
[1735126999704,0.259706,708.66,707.39,1.05053463]
[1735127000709,0.259706,708.66,707.34,1.05053463]
[1735127001808,0.259706,708.66,707.31,1.05053463]
[1735127002409,0.25970048,708.65,707.31,1.05053463]
[1735127002606,0.25970048,708.64,707.33,1.05053463]
[1735127002811,0.25970048,708.63,707.33,1.05053463]
[1735127003008,0.25970048,708.62,707.33,1.05053463]
[1735127003206,0.25970048,708.61,707.33,1.05053463]
[1735127003407,0.25970048,708.6,707.33,1.05053463]
[1735127003603,0.25970048,708.59,707.33,1.05053463]
[1735127003807,0.25970048,708.58,707.25,1.05053463]
[1735127004009,0.25970048,708.57,707.25,1.05053463]
[1735127004205,0.25970048,708.56,707.25,1.05053463]
[1735127004512,0.25970048,708.55,707.25,1.05053463]
[1735127004814,0.25970048,708.54,707.2,1.05053463]
[1735127005106,0.54203183,708.53,707.2,1.05053463]
[1735127005312,0.25975727,708.52,707.2,1.05053463]
[1735127006313,0.25975727,708.52,707.16,1.05053463]
[1735127007112,0.25975727,708.52,707.14,1.05053463]
[1735127008012,0.25974584,708.51,707.14,1.05053463]
[1735127008213,0.25974584,708.5,707.14,1.05053463]
[1735127008413,0.25974584,708.49,707.14,1.05053463]
[1735127008614,0.25974584,708.48,707.14,1.05053463]
[1735127008812,0.25974584,708.47,707.14,1.05053463]
[1735127009009,0.25974584,708.46,707.14,1.05053463]
[1735127009211,0.25974584,708.45,707.14,1.05053463]
[1735127009411,0.25974584,708.44,707.14,1.05053463]
[1735127009617,0.25974584,708.43,707.14,1.05053463]
[1735127009809,0.25974584,708.42,707.1,1.05053463]
[1735127010013,0.25974584,708.41,707.1,1.05053463]
[1735127010211,0.25974584,708.4,707.1,1.05053463]
[1735127010414,0.25974584,708.39,707.1,1.05053463]
[1735127010717,0.25974584,708.39,706.37,2.14484154]
[1735127010718,0.25976628,708.38,707.11,1.05053463]
[1735127010910,0.25976628,708.37,707.11,1.05053463]
[1735127011113,0.25976628,708.36,707.11,1.05053463]
[1735127011313,0.25976628,708.35,707.11,1.05053463]
[1735127011513,0.25976628,708.34,707.11,1.05053463]
[1735127011709,0.25976628,708.33,707.09,1.05053463]
[1735127012010,0.25976628,708.32,707.09,1.05053463]
[1735127012310,0.25976628,708.31,707.09,1.05053463]
[1735127012514,0.25976628,708.3,707.09,1.05053463]
[1735127012717,0.25976628,708.29,707.13,1.05053463]
[1735127013017,0.25976628,708.28,707.13,1.05053463]
[1735127013216,0.25976628,708.27,707.13,1.05053463]
[1735127013416,0.25976628,708.51,707.13,1.05053463]
[1735127013614,0.25976628,708.5,707.12,1.05053463]
[1735127013817,0.25976628,708.49,707.12,1.05053463]
[1735127014014,0.25976628,708.48,707.12,1.05053463]
[1735127014216,0.25976628,708.51,707.12,1.05053463]
[1735127014517,0.25976628,708.5,707.12,1.05053463]
[1735127014722,0.25976628,708.5,706.57,2.14484154]
[1735127014723,0.25976628,708.49,706.97,1.05053463]
[1735127015016,0.25976628,708.48,706.97,1.05053463]
[1735127015218,0.25976628,708.47,706.97,1.05053463]
[1735127015419,0.25976628,708.46,706.97,1.05053463]
[1735127015718,0.25976628,708.46,706.33,2.14484154]
[1735127015719,0.25976628,708.45,706.82,1.05053463]
[1735127015920,0.822,708.52,706.82,1.05053463]
[1735127015921,0.25976628,708.44,706.82,1.05053463]
[1735127016114,0.25976628,708.51,706.82,1.05053463]
[1735127016313,0.25976628,708.5,706.82,1.05053463]
[1735127016619,0.25976628,708.49,706.82,1.05053463]
[1735127016821,0.822,708.52,706.81,1.05053463]
[1735127016822,0.25976628,708.48,706.81,1.05053463]
[1735127017020,0.25976628,708.47,706.81,1.05053463]
[1735127017217,0.25976628,708.46,706.81,1.05053463]
[1735127017414,0.25976628,708.45,706.81,1.05053463]
[1735127017619,0.25976628,708.44,706.78,1.05053463]
[1735127017818,0.25976628,708.43,706.78,1.05053463]
[1735127018015,0.25976628,708.42,706.78,1.05053463]
[1735127018320,0.25976628,708.41,706.78,1.05053463]
[1735127018515,0.25976628,708.4,706.76,1.05053463]
[1735127018714,0.25976628,708.39,706.77,0.28297748]
[1735127018916,0.25981886,708.38,706.77,0.28297748]
[1735127019220,0.25981886,708.37,706.77,0.28297748]
[1735127019421,0.25981886,708.36,706.77,0.28297748]
[1735127019623,0.25981886,708.51,706.77,0.28297748]
[1735127019818,0.25981886,708.5,706.77,0.28297748]
[1735127020023,0.25981886,708.49,706.77,0.28297748]
[1735127020225,0.25981886,708.48,706.77,0.28297748]
[1735127020422,0.25981886,708.47,706.77,0.28297748]
[1735127020729,0.25981886,708.46,706.77,0.28297748]
[1735127021026,0.25981886,708.45,706.77,0.28297748]
[1735127021225,0.25981886,708.44,706.77,0.28297748]
[1735127021421,0.25981886,708.43,706.77,0.28297748]
[1735127021623,0.25981886,708.42,706.79,1.05053463]
[1735127021829,0.25981886,708.41,706.79,1.05053463]
[1735127022025,0.25981886,708.4,706.79,1.05053463]
[1735127022225,0.25981886,708.39,706.79,1.05053463]
[1735127022523,0.25984349,708.38,706.79,1.05053463]
[1735127022722,0.25984349,708.38,706.77,0.28297748]
[1735127022723,0.25984349,708.37,706.77,1.33351211]
[1735127022922,0.25984349,708.36,706.77,1.33351211]
[1735127023125,0.25984349,708.35,706.77,1.33351211]
[1735127023326,0.25984349,708.34,706.77,1.33351211]
[1735127023526,0.25984349,708.33,706.77,1.33351211]
[1735127023723,0.25984349,708.32,706.78,1.05053463]
[1735127024029,0.822,708.52,706.78,1.05053463]
[1735127024030,0.25984349,708.31,706.78,1.05053463]
[1735127024228,0.25984349,708.3,706.78,1.05053463]
[1735127024529,0.25984349,708.29,706.78,1.05053463]
[1735127024731,0.25984349,708.51,706.77,0.28297748]
[1735127024931,0.25984349,708.5,706.77,0.28297748]
[1735127025231,0.25984349,708.49,706.77,0.28297748]
[1735127025524,0.25984349,708.48,706.77,0.28297748]
[1735127025732,0.25984349,708.47,706.79,1.05053463]
[1735127025929,0.25984349,708.46,706.79,1.05053463]
[1735127026124,0.25984349,708.45,706.79,1.05053463]
[1735127026323,0.25984349,708.44,706.79,1.05053463]
[1735127026522,0.25984349,708.44,706.8,1.05053463]
[1735127028425,0.25984349,708.44,706.77,0.28297748]
[1735127029930,0.81,708.45,706.77,0.28297748]
[1735127030130,0.25986396,708.44,706.77,0.28297748]
[1735127030833,0.25986509,708.43,706.77,0.28297748]
[1735127031028,0.25986509,708.42,706.77,0.28297748]
[1735127031233,0.25986509,708.41,706.77,0.28297748]
[1735127031437,0.25986509,708.4,706.77,0.28297748]
[1735127031627,0.25986509,708.39,706.77,0.28297748]
[1735127031831,0.25986509,708.38,706.77,0.28297748]
[1735127032031,0.81,708.45,706.77,0.28297748]
[1735127032032,0.25986509,708.37,706.77,0.28297748]
[1735127032233,0.25986509,708.36,706.77,0.28297748]
[1735127032433,0.81,708.45,706.77,0.28297748]
[1735127032434,0.25986509,708.35,706.77,0.28297748]
[1735127032634,0.25986509,708.34,706.77,0.28297748]
[1735127032831,0.25986584,708.33,706.77,0.28297748]
[1735127033036,0.25986584,708.32,706.77,0.28297748]
[1735127033236,0.25986584,708.31,706.77,0.28297748]
[1735127033436,0.25986584,708.44,706.77,0.28297748]
[1735127033736,0.25986584,708.43,706.77,0.28297748]
[1735127034035,0.25986584,708.42,706.77,0.28297748]
[1735127034229,0.25986584,708.41,706.77,1.33351211]
[1735127034432,0.25986584,708.4,706.77,1.33351211]
[1735127034632,0.25986584,708.39,706.77,1.33351211]
[1735127034833,0.25986584,708.38,706.77,1.33351211]
[1735127035130,0.25986584,708.37,706.77,1.33351211]
[1735127035335,0.25986584,708.36,706.78,1.05053463]
[1735127035537,0.81,708.45,706.78,1.05053463]
[1735127035735,0.25985851,708.44,706.78,1.05053463]
[1735127036036,0.25985851,708.44,706.79,1.05053463]
[1735127036633,0.81,708.45,706.79,1.05053463]
[1735127036936,0.25983109,708.44,706.86,1.05053463]
[1735127038137,0.25983109,708.44,706.92,1.05053463]
[1735127038440,0.25983993,708.43,706.92,1.05053463]
[1735127038639,0.25983993,708.42,706.92,1.05053463]
[1735127038833,0.25983993,708.41,706.91,1.05053463]
[1735127039038,0.25983993,708.4,706.91,1.05053463]
[1735127039335,0.81,708.45,706.91,1.05053463]
[1735127039336,0.25982886,708.39,706.91,1.05053463]
[1735127039533,0.25982886,708.38,706.91,1.05053463]
[1735127039737,0.25982886,708.37,706.91,1.05053463]
[1735127040037,0.25982886,708.36,706.92,1.05053463]
[1735127040241,0.25982886,708.35,706.92,1.05053463]
[1735127040438,0.25982886,708.34,706.92,1.05053463]
[1735127040639,0.25982886,708.33,706.92,1.05053463]
[1735127040838,0.81,708.45,706.92,1.05053463]
[1735127041034,0.25984959,708.44,706.92,1.05053463]
[1735127041437,0.25984959,708.44,706.77,0.28297748]
[1735127041438,0.25984959,708.44,706.86,1.05053463]
[1735127041635,0.25984959,708.43,706.86,1.05053463]
[1735127041835,0.25984959,708.42,706.86,1.05053463]
[1735127042036,0.25984959,708.41,706.86,1.05053463]
[1735127042341,0.25984959,708.4,706.86,1.05053463]
[1735127042643,0.28227456,708.53,706.82,1.05053463]
[1735127042644,0.25984959,708.39,706.82,1.05053463]
[1735127042840,0.25984959,708.38,706.82,1.05053463]
[1735127043040,0.717,708.41,706.82,1.05053463]
[1735127043243,0.25985065,708.4,706.82,1.05053463]
[1735127043742,0.25985065,708.4,706.83,1.05053463]
[1735127045043,0.25985065,708.4,706.89,1.05053463]
[1735127045845,0.25984744,708.39,706.89,1.05053463]
[1735127046146,0.25984744,708.38,706.91,1.05053463]
[1735127046341,0.25984744,708.37,706.91,1.05053463]
[1735127046538,0.25984744,708.4,706.91,1.05053463]
[1735127046738,0.25984744,708.36,706.91,1.05053463]
[1735127046940,0.717,708.41,706.91,1.05053463]
[1735127046941,0.25984744,708.35,706.91,1.05053463]
[1735127047142,0.25984744,708.34,706.92,1.05053463]
[1735127047339,0.717,708.41,706.92,1.05053463]
[1735127047340,0.25984744,708.33,706.92,1.05053463]
[1735127047540,0.25984744,708.32,706.92,1.05053463]
[1735127047738,0.25984744,708.31,706.92,1.05053463]
[1735127047944,0.25984744,708.3,707.06,1.05053463]
[1735127048243,0.25984744,708.29,707.06,1.05053463]
[1735127048441,0.25984744,708.28,707.06,1.05053463]
[1735127048640,0.25984744,708.4,707.06,1.05053463]
[1735127048946,0.25984744,708.39,707.06,1.05053463]
[1735127049147,0.25984744,708.38,707.07,1.05053463]
[1735127049440,0.25984744,708.37,707.07,1.05053463]
[1735127049645,0.25984744,708.36,707.07,1.05053463]
[1735127049845,0.25984744,708.35,707.07,1.05053463]
[1735127050046,0.25984744,708.34,707.0,1.05053463]
[1735127050240,0.25984744,708.33,707.0,1.05053463]
[1735127050445,0.25984744,708.32,707.0,1.05053463]
[1735127050643,0.25984744,708.31,707.0,1.05053463]
[1735127050843,0.25984744,708.3,707.0,1.05053463]
[1735127051042,0.25984744,708.4,707.0,1.05053463]
[1735127051241,0.25984744,708.4,698.21,13.47283142]
[1735127051242,0.25995643,708.39,706.63,1.05053463]
[1735127051441,0.25995643,708.4,706.63,1.05053463]
[1735127051644,0.25995643,708.39,706.63,1.05053463]
[1735127051845,0.25995643,708.38,706.63,1.05053463]
[1735127052047,0.25995643,708.38,705.74,2.14484154]
[1735127052048,0.25995643,708.37,706.46,1.05053463]
[1735127052242,0.25995643,708.36,706.46,1.05053463]
[1735127052548,0.25995643,708.35,706.46,1.05053463]
[1735127052748,0.25995643,708.34,706.46,1.05053463]
[1735127052949,0.25995643,708.33,706.46,1.05053463]
[1735127053246,0.25995643,708.32,706.43,1.05053463]
[1735127053446,0.25995643,708.31,706.43,1.05053463]
[1735127053643,0.25995643,708.35,706.43,1.05053463]
[1735127053849,0.25995643,708.34,706.43,1.05053463]
[1735127054050,0.25995643,708.33,706.43,1.05053463]
[1735127054252,0.25995643,708.32,706.43,1.05053463]
[1735127054444,0.25995643,708.35,706.43,1.05053463]
[1735127054649,0.25995643,708.34,706.37,1.05053463]
[1735127054850,0.25995643,708.33,706.37,1.05053463]
[1735127055052,0.25995643,708.32,706.37,1.05053463]
[1735127055246,0.25995643,708.31,706.37,1.05053463]
[1735127055452,0.25995643,708.3,706.37,1.05053463]
[1735127055649,0.25995643,708.29,706.29,1.05053463]
[1735127055848,0.25995643,708.28,706.29,1.05053463]
[1735127056049,0.25995643,708.27,706.29,1.05053463]
[1735127056250,0.25995643,708.26,706.29,1.05053463]
[1735127056446,0.25995643,708.25,706.29,1.05053463]
[1735127056651,1.04887073,708.49,706.29,1.05053463]
[1735127056652,0.25995643,708.24,706.29,1.05053463]
[1735127056852,0.25995643,708.23,706.31,1.05053463]